Cogmind - Beta 13 *** ADVENTURER MODE // 2024.04.01 @ 17:00:44 Player: catshark Result: Destroyed by D-53 Grenadier with Mini Grenade Launcher Performance ------------- Evolutions (0) 0 Regions Visited (2) 400 Robots Destroyed (16) 80 Value Destroyed (293) 293 Prototype IDs (0) 0 Alien Tech Used (0) 0 Bonus (0) 0 TOTAL SCORE: 773 Bonus ------- None Cogmind --------- Core Integrity 0/250 Matter 177/300 Energy 83/100 System Corruption 0% Temperature Cool (26) Movement Core (800) Ox15 Location -10/Mines Parts ------- > --- POWER (1) -------- (None) > --- PROPULSION (2) --- (None) > --- UTILITY (2) ------ High-capacity Storage Unit Signal Interpreter > --- WEAPON (2) ------- Improved Light Cannon Grenade Launcher > --- INVENTORY (20) --- Ion Engine Light Ion Engine Aluminum Leg Aluminum Leg Weight Redist. System Sensor Array Beam Cannon Assault Rifle Improved Light Cannon Datajack Hammer Peak State ------------ > --- POWER ------------ Light Ion Engine > --- PROPULSION ------- Light Treads Light Treads > --- UTILITY ---------- High-capacity Storage Unit Signal Interpreter > --- WEAPON ----------- Beam Cannon Rocket Launcher > --- INVENTORY -------- Ion Engine Light Ion Engine Aluminum Leg Aluminum Leg Weight Redist. System Sensor Array Beam Cannon Assault Rifle Improved Light Cannon Improved Light Cannon Grenade Launcher Datajack Hammer [Rating: 9] Favorites ----------- Power Light Ion Engine Engine Light Ion Engine Propulsion Light Treads Treads Light Treads Utility High-capacity Storage Unit Device Heat Sink Storage High-capacity Storage Unit Processor Signal Interpreter Weapon Assault Rifle Energy Gun Small Laser Energy Cannon Beam Cannon Ballistic Gun Assault Rifle Ballistic Cannon Improved Light Cannon Launcher Rocket Launcher Build | -11 -10 -10 ------- Run | Yrd Mat Min Slots Evolved . | . . . Power . | . . . Propulsion . | . . . Utility . | . . . Weapon . | . . . Parts Attached 21 | 6 12 3 Power 4 | 1 3 . Engine 4 | 1 3 . Core . | . . . Reactor . | . . . Propulsion 3 | 2 1 . Treads 3 | 2 1 . Leg . | . . . Wheel . | . . . Hover . | . . . Flight . | . . . Utility 8 | 1 7 . Device 1 | . 1 . Storage 5 | 1 4 . Processor 2 | . 2 . Hackware . | . . . Protection . | . . . Artifact . | . . . Weapon 6 | 2 1 3 Energy Gun 1 | 1 . . Energy Cannon 1 | . 1 . Ballistic Gun 1 | 1 . . Ballistic Cannon 1 | . . 1 Launcher 2 | . . 2 Special Weapon . | . . . Impact Weapon . | . . . Slashing Weapon . | . . . Piercing Weapon . | . . . Special Melee Weapon . | . . . Unidentified Prototypes . | . . . Parts Lost 5 | . . 5 Power 1 | . . 1 Propulsion 2 | . . 2 Utility . | . . . Weapon 2 | . . 2 Highest Loss Streak 5 | . . 5 To Critical Strikes . | . . . Average Slot Usage (%) 97 | . 97 94 Engine 13 | . 14 11 Treads 27 | . 28 25 Storage 14 | . 14 14 Processor 10 | . 10 14 Energy Gun 2 | . 2 . Energy Cannon 11 | . 11 12 Ballistic Gun 13 | . 14 10 Naked Turns . | . . . Heaviest Build 48 | 13 48 48 Greatest Support 40 | 40 40 40 Greatest Overweight (x) 1 | . 1 1 Average Overweight (x) . | . . 1 Largest Inventory Capacity 20 | 8 20 20 Average Capacity 17 | 7 18 20 Most Carried 14 | 3 12 14 Average Carried 8 | 2 8 12 Final Capacity 20 | 8 20 20 Final Carried 12 | 3 12 11 Class Distribution -------------------- 100% | Mutant Dominant Class ---------------- Mutant | -10/Materials Mutant | -10/Mines Resources | -11 -10 -10 ----------- Run | Yrd Mat Min Matter Collected 429 | 202 227 . Remotely . | . . . Salvage Created 336 | . 324 12 Parts 35 | . 33 2 Haulers Intercepted . | . . . Recyclers Shooed . | . . . Parts Field Recycled . | . . . Retrieved Matter . | . . . Parts Self-Destructed . | . . . Prevented . | . . . Kills | -11 -10 -10 ------- Run | Yrd Mat Min Combat Hostiles Destroyed 10 | . 9 1 Guns 8 | . 8 . Cannons 1 | . . 1 Classes Destroyed 6 | . 5 1 Worker 2 | . 1 1 Builder 1 | . 1 . Watcher 3 | . 3 . Swarmer 6 | . 6 . Grunt 3 | . 3 . Demolisher 1 | . . 1 Best Kill Streak 4 | . 4 2 Combat Bots Only 4 | . 4 1 Max Kills in Single Turn 2 | . 2 1 Gunslinging . | . . . Exploded . | . . . Melee . | . . . Uniques/NPCs Destroyed . | . . . Combat | -11 -10 -10 -------- Run | Yrd Mat Min Hostile Shots Fired 85 | . 63 22 Missed 17 | . 15 2 Damage Taken 1002 | . 308 694 Core 256 | . 65 191 Absorbed by Shields . | . . . Ignored by Resistances 298 | . 106 192 Core Remaining (%) 100 | 100 . . Volleys Fired 36 | . 29 7 Largest 2 | . 2 2 Hottest 93 | . 80 93 Shots Fired 70 | . 57 13 Gun 46 | . 46 . Cannon 17 | . 11 6 Launcher 7 | . . 7 Special . | . . . Kinetic 30 | . 29 1 Thermal 33 | . 28 5 Explosive 7 | . . 7 Electromagnetic . | . . . Robot Hit Streak 9 | . 8 9 Robot Miss Streak 3 | . 3 2 Penetration Max . | . . . Secondary Targets 3 | . 3 . Max Gunslinging Chain 1 | . 1 . Shots Hit Robots 47 | . 36 11 Core Hits 28 | . 16 12 Critical Kills 1 | . 1 . Critical Parts Destroyed . | . . . Critical Strikes 1 | . 1 . Meltdown 1 | . 1 . Melee Attacks . | . . . Impact . | . . . Slashing . | . . . Piercing . | . . . Sneak Attacks . | . . . Combat Hostiles . | . . . Follow-up Attacks . | . . . Damage Inflicted 730 | . 505 225 Guns 364 | . 364 . Cannons 229 | . 141 88 Explosions 137 | . . 137 Melee . | . . . Ramming . | . . . Kinetic 248 | . 230 18 Thermal 345 | . 275 70 Explosive 137 | . . 137 Electromagnetic . | . . . Impact . | . . . Slashing . | . . . Piercing . | . . . Highest Corruption . | . . . Average Corruption . | . . . Corruption Purged . | . . . Corruption Blocked . | . . . Overload Shots . | . . . Overflow Damage . | . . . Projectiles . | . . . Explosions . | . . . Melee . | . . . Knockbacks . | . . . Impact . | . . . Kinetic . | . . . Secondary . | . . . Self-Inflicted Damage . | . . . Shots . | . . . Rammed . | . . . Targets Rammed . | . . . Kicked . | . . . Crushed . | . . . Highest Temperature 100 | . 84 100 Average Temperature 36 | . 27 55 Received Heat Transfer 42 | . 42 . Siege Activations . | . . . Robots Corrupted . | . . . Combat Hostiles . | . . . Parts Fried . | . . . Impact Corruptions . | . . . Robots Melted 1 | . 1 . Combat Hostiles 1 | . 1 . Parts Melted 1 | . 1 . Heat Transferred 744 | . 596 148 Parts Sabotaged . | . . . Parts Stolen . | . . . Parts Stripped . | . . . Power Chain Reactions . | . . . Alert | -11 -10 -10 ------- Run | Yrd Mat Min Peak Influence 238 | . 238 30 Initial . | . . . Average 46 | . 59 2 Maximum Alert Level 1 | . 1 . Low Security (%) 92 | 100 91 100 Level 1 7 | . 8 . Level 2 . | . . . Level 3 . | . . . Level 4 . | . . . Level 5 . | . . . High Security . | . . . Max Security . | . . . Squads Dispatched 1 | . 1 . Investigation 1 | . 1 . Extermination . | . . . Reinforcement . | . . . Assault . | . . . Garrison . | . . . Intercept . | . . . Searches Triggered . | . . . Construction Impeded . | . . . Haulers Reinforced . | . . . Active Scanning Responses . | . . . Cargo Convoy Interrupts . | . . . Stealth | -11 -10 -10 --------- Run | Yrd Mat Min Distress Signals 2 | . 2 . Communications Jammed . | . . . Distress Signals . | . . . Times Spotted 17 | . 15 2 Peak Tracking Total 5 | . 5 2 Tactical Retreats 1 | . 1 . Traps | -11 -10 -10 ------- Run | Yrd Mat Min Traps Triggered 2 | . 2 . Indirectly . | . . . Trap Hack Attempts . | . . . Triggered . | . . . Disarmed . | . . . Reprogrammed . | . . . Reused . | . . . Traps Extracted . | . . . Installed . | . . . Triggered . | . . . Machines | -11 -10 -10 ---------- Run | Yrd Mat Min Machines Disabled 1 | . 1 . Max in Single Turn 1 | . 1 . Machines Repaired . | . . . Machines Dismantled . | . . . Machines Sabotaged . | . . . Overloaded Fab Kills . | . . . Hacking | -11 -10 -10 --------- Run | Yrd Mat Min Machines Accessed . | . . . Terminals . | . . . Fabricators . | . . . Repair Stations . | . . . Recycling Units . | . . . Scanalyzers . | . . . Garrison Access . | . . . Total Hacks . | . . . Successful . | . . . Failed . | . . . Catastrophic . | . . . Database Lockouts . | . . . Manual . | . . . Terminals . | . . . Fabricators . | . . . Repair Stations . | . . . Recycling Units . | . . . Scanalyzers . | . . . Garrison Access . | . . . Terminal Hacks . | . . . Fabricator Hacks . | . . . Repair Station Hacks . | . . . Recycling Unit Hacks . | . . . Scanalyzer . | . . . Garrison Access Hacks . | . . . Unauthorized Hacks . | . . . Terminals . | . . . Fabricators . | . . . Repair Stations . | . . . Recycling Units . | . . . Scanalyzers . | . . . Garrison Access . | . . . Data Cores Recovered . | . . . Used . | . . . Hacking Detections . | . . . Full Trace Events . | . . . Feedback Events . | . . . Feedback Blocked . | . . . Robot Schematics Acquired . | . . . Robots Built . | . . . Authchips . | . . . Time . | . . . Total Robot Build Rating . | . . . Part Schematics Acquired . | . . . Parts Built . | . . . Authchips . | . . . Time . | . . . Total Part Build Rating . | . . . Parts Repaired . | . . . Time . | . . . Parts Recycled . | . . . Recycled Matter . | . . . Retrieved Matter . | . . . Retrieved Components . | . . . Parts Scanalyzed . | . . . Part Schematics Acquired . | . . . Parts Damaged . | . . . Bothacking | -11 -10 -10 ------------ Run | Yrd Mat Min Used RIF Installer . | . . . Robots Hacked . | . . . Non-combat . | . . . Combat . | . . . Robot Hacks Applied . | . . . Relay Couplers Released . | . . . Fabnet Peak Effective % . | . . . Robots Rewired . | . . . Allies Hacked . | . . . Hacks Repelled . | . . . Allies | -11 -10 -10 -------- Run | Yrd Mat Min Total Allies . | . . . Largest Group . | . . . Highest-Rated Group . | . . . Highest-Rated Ally . | . . . Total Orders . | . . . Ally Attacks . | . . . Total Damage . | . . . Kills . | . . . Allies Corrupted . | . . . Allies Melted . | . . . Intel | -11 -10 -10 ------- Run | Yrd Mat Min Robot Analysis Total . | . . . Derelict Logs Recovered . | . . . Drone Launches . | . . . Drone Recoveries . | . . . Exploration | -11 -10 -10 ------------- Run | Yrd Mat Min Turns Passed 1642 | 221 1295 126 Spaces Moved 716 | 135 541 40 Core 5 | 5 . . Treads 711 | 130 541 40 Legs . | . . . Wheels . | . . . Hover . | . . . Flight . | . . . Fastest Speed 50 | 50 160 240 Average Speed 207 | 155 217 240 Slowest Speed 240 | 160 240 240 Overloaded Moves . | . . . Propulsion Burnouts . | . . . Robots Hopped . | . . . Cave-ins Triggered . | . . . Exploration Rate (%) 32 | 6 74 17 Regions Visited 2 Branch Regions 1 Pre-discovered Areas . | . . . Known Exits Taken 1 | . 1 . Unknown Exits Taken 1 | 1 . . Scrap Searched . | . . . Spaces Dug . | . . . Terrain Destroyed 25 | . . 25 Melee . | . . . Projectile . | . . . AOE 25 | . . 25 Terrain Rammed . | . . . Walls Destroyed . | . . . Machines Disabled . | . . . Actions | -11 -10 -10 --------- Run | Yrd Mat Min Total 801 | 143 601 57 Wait 8 | . 3 5 Move 714 | 134 540 40 Hop . | . . . Pick Up 13 | 3 9 1 Fast Attach 11 | 6 5 . Attach 3 | . . 3 Detach 2 | . 1 1 Swap 7 | . 7 . Drop 7 | . 7 . Fire 36 | . 29 7 Melee . | . . . Ram . | . . . Kick . | . . . Crush . | . . . Escape Stasis . | . . . Rewire . | . . . Trap . | . . . Miscellaneous . | . . . Route ------- -11/Scrapyard -10/Materials (discovered 2 exits: *Mat / *Min) -10/Mines History --------- Turn | Location | Event 2 | -11/Scrapyard | Met Revision 17 3 | -11/Scrapyard | Discovered new exit (range 15) 222 | -11/Scrapyard | Entered Materials 313 | -10/Materials | Build established: Mutant 497 | -10/Materials | Discovered new exit (range 16) 943 | -10/Materials | Identified exit to Mines 1149 | -10/Materials | Discovered new exit (range 8) 1165 | -10/Materials | Identified exit to Materials 1517 | -10/Materials | Entered Mines 1570 | -10/Mines | Received a Rocket Launcher from a helpful Derelict 1611 | -10/Mines | Assembled infested the area 1635 | -10/Mines | Core integrity fell below 50% 1640 | -10/Mines | Core integrity fell below 20% 1643 | -10/Mines | Destroyed by D-53 Grenadier with Mini Grenade Launcher Last Messages --------------- lend you mine." D8-IRY(g) slips back into the shadows. K-01 Serf collects debris. Acquired Rocket Launcher. K-01 Serf collects debris. ALERT: Infestation in the mines, dispatching Demolisher response squad. K-01 Serf collects debris. C-30 ARC bursts open, deploying its payload. D-53 Grenadier unfolds itself. Lgt. Ion Engine destroyed. K-01 Serf destroyed. U-05 Engineer destroyed. K-01 Serf destroyed. Beam Cannon destroyed. Lgt. Treads destroyed. Rocket Launcher destroyed. Lgt. Treads destroyed. D-53 Grenadier destroyed. U-05 Engineer builds a Wall. Map ----- +----------------------------------------------------+ | ???????????????????????????#### #??????? | | ???????????????????????????# #??????? | | ???????????????????????????# # #??????? | | ???????????????????????????# # #??????? | | ???????????????????????????# # #??????? | | ???????????????????????????# # #??????? | | ???????????????????????????# # """ #??????? | | ???????????????????????????# # """ #??????? | | ???????????????????????????# # """ #??????? | | ???????????????????????????# # #??????? | | ???????????????????????????# ##########??????? | | ???????????????????????????# #???????????????? | | ???????????????????????????# #???????????????? | | ???????????????????????????# #???????????????? | | ??????????????????????????## #???????????????? | | ??????????????????????????# #???????????????? | | ??????????????????????????# ##??????????????? | | ??????????????????????????# #??????????????? | | ??????????????????????????# #??????????????? | | ??????????????????????##### ##??????????????? | | ?????????????????????## # ##???????????????? | | ???????????????##????# ##???????????????? | | ??????????????## ### ######??????????? | | ??????????????# *% ## ?????? | | ??????????????# %# #???????? | | ??????????????## @ #??????? | | ???????????????#### ?????? | | ??????????????????### d ?????? | | ????????????????????## ??????? | | ????????????????????# ??????? | | ????????????????????## =%! ???????? | | ?????????????????????####!### #???????? | | ????????????????????????#%#??##### ???????? | | ????????????????????????# #????????# ????????? | | ????????????????????????#r#?????????? ????????? | | ???????????????????????? ???????????????????? | | ???????????????????????? #???????????????????? | | ????????????????????????##????????????????????? | | ??????????????????????????????????????????????? | | ??????????????????????????????????????????????? | | ??????????????????????????????????????????????? | | ??????????????????????????????????????????????? | | ??????????????????????????????????????????????? | | ??????????????????????????????????????????????? | | ??????????????????????????????????????????????? | | ??????????????????????????????????????????????? | | ??????????????????????????????????????????????? | | ??????????????????????????????????????????????? | | ??????????????????????????????????????????????? | | ??????????????????????????????????????????????? | +----------------------------------------------------+ Best States ------------- Heat Dissipation 35 Energy Generation 10 Energy Capacity 250 Matter Stores 300 Matter Capacity 300 Sight Range 18 Terrain Scan Density 10 Resistance: KI 20 Resistance: TH 20 Resistance: EX 20 Resistance: EM 20 Resistance: I 20 Resistance: S 20 Resistance: P 20 Evasion (%) 40 Recoil Reduction 2 Offensive Hacking 10 Item Schematics ----------------- None Robot Schematics ------------------ None Fabricated ------------ Nothing Alien Tech Used ----------------- None Achievements -------------- None Challenges ------------ None Game ------ Seed HackingDiametricCarapace Manual? 0 Play Time 00:12:45 Cumulative 1.8 hours Start 2024.04.01 @ 16:48:37 End 2024.04.01 @ 17:00:44 Sessions 1 Manual Loads 0 Difficulty Adventurer Special Mode None Game No. 3 Rogue 0 Adventurer 3 Explorer 0 Win Type - Total 0 Types 0/0/0/0/0/0/0/0/0 Lore% 1 Gallery% 7 Achievement% 5 Wizard Run 0 Options --------- Layout 1 ASCII 0 Keyboard 0 Movement Mouse Keybinds 0 Fullscreen 1 Font 32/SmallcapsGlow Map View 50x40 Zoom Use 0% Tactical HUD 0 Map Filters NONE Filters NONE Steam 1 RUN: 42e087b5-9ed3-4d31-b132-12bed9ea59d7